[Event "*** Titled Tuesday Blitz"]
[Site "Chess.com"]
[Date "2020.03.03"]
[Round "7"]
[White "Lubov_Gordyk"]
[Black "iturrizaga"]
[Result "0-1"]
[WhiteElo "2641"]
[BlackElo "2957"]
[TimeControl "180+1"]
[EndTime "10:16:17 PST"]
[Termination "iturrizaga won by resignation"]

1. e4 {[%clk 0:03:00.9]} 1... c5 {[%clk 0:03:00]} 2. g3 {[%clk 0:03:00.6]} 2...
g6 {[%clk 0:03:00.3]} 3. Bg2 {[%clk 0:03:00.5]} 3... Bg7 {[%clk 0:03:01.2]} 4.
Ne2 {[%clk 0:03:00.7]} 4... h5 {[%clk 0:02:58.5]} 5. h3 {[%clk 0:02:55.2]} 5...
Nf6 {[%clk 0:02:57.3]} 6. c3 {[%clk 0:02:50.2]} 6... Nc6 {[%clk 0:02:55.5]} 7.
d4 {[%clk 0:02:49.9]} 7... cxd4 {[%clk 0:02:56.4]} 8. cxd4 {[%clk 0:02:49.9]}
8... d6 {[%clk 0:02:56.7]} 9. Nbc3 {[%clk 0:02:49.2]} 9... Bd7 {[%clk 0:02:56]}
10. Be3 {[%clk 0:02:47.9]} 10... Rc8 {[%clk 0:02:56]} 11. Qd2 {[%clk 0:02:47]}
11... a6 {[%clk 0:02:54.8]} 12. O-O {[%clk 0:02:44.4]} 12... b5 {[%clk
0:02:53.9]} 13. Rfc1 {[%clk 0:02:43.8]} 13... Qa5 {[%clk 0:02:52.1]} 14. f4
{[%clk 0:02:38]} 14... b4 {[%clk 0:02:49.1]} 15. Nd1 {[%clk 0:02:37.9]} 15... d5
{[%clk 0:02:49.1]} 16. e5 {[%clk 0:02:36.2]} 16... Ne4 {[%clk 0:02:49.3]} 17.
Bxe4 {[%clk 0:02:20.6]} 17... dxe4 {[%clk 0:02:48.5]} 18. d5 {[%clk 0:02:20.6]}
18... Nd8 {[%clk 0:02:41.3]} 19. Nf2 {[%clk 0:02:19.8]} 19... O-O {[%clk
0:02:39.4]} 20. a3 {[%clk 0:02:09.3]} 20... Nb7 {[%clk 0:02:24.1]} 21. axb4
{[%clk 0:02:01.8]} 21... Qb5 {[%clk 0:02:24.2]} 22. Kh2 {[%clk 0:01:54.8]} 22...
Rfd8 {[%clk 0:02:21.2]} 23. Nxe4 {[%clk 0:01:52.7]} 23... Rxc1 {[%clk 0:02:17]}
24. Rxc1 {[%clk 0:01:50.5]} 24... Bf5 {[%clk 0:02:16.7]} 25. Nd4 {[%clk
0:01:40.4]} 25... Qxd5 {[%clk 0:02:11.1]} 26. Nf2 {[%clk 0:01:24]} 26... Bd7
{[%clk 0:01:57.2]} 27. Rc7 {[%clk 0:01:15.6]} 27... Rc8 {[%clk 0:01:54.9]} 28.
Qc3 {[%clk 0:01:13]} 28... Rxc7 {[%clk 0:01:47.5]} 29. Qxc7 {[%clk 0:01:12.7]}
29... e6 {[%clk 0:01:47.4]} 30. Qc3 {[%clk 0:01:02.4]} 30... Bf8 {[%clk
0:01:43.2]} 31. g4 {[%clk 0:01:02.4]} 31... h4 {[%clk 0:01:35.2]} 32. g5 {[%clk
0:01:00.2]} 32... Be7 {[%clk 0:01:32.6]} 33. Ng4 {[%clk 0:00:58.2]} 33... Qe4
{[%clk 0:01:31.9]} 34. Nf6+ {[%clk 0:00:57.5]} 34... Bxf6 {[%clk 0:01:31.4]} 35.
gxf6 {[%clk 0:00:56.2]} 35... Kh7 {[%clk 0:01:15.3]} 36. Qe1 {[%clk 0:00:55.6]}
36... g5 {[%clk 0:01:12.1]} 37. Qf2 {[%clk 0:00:50.1]} 37... Nd8 {[%clk
0:01:07.5]} 38. fxg5 {[%clk 0:00:40.8]} 38... Nc6 {[%clk 0:01:04.3]} 39. Nf3
{[%clk 0:00:40.5]} 39... Kg8 {[%clk 0:00:57.6]} 40. g6 {[%clk 0:00:38.1]} 40...
Nxe5 {[%clk 0:00:53.6]} 41. Nxe5 {[%clk 0:00:33.5]} 41... Qxe5+ {[%clk
0:00:53.5]} 42. Kg1 {[%clk 0:00:24.8]} 42... Bc6 {[%clk 0:00:48.7]} 43. gxf7+
{[%clk 0:00:23.3]} 43... Kxf7 {[%clk 0:00:49.6]} 44. Qf4 {[%clk 0:00:22.7]}
44... Qxf4 {[%clk 0:00:26.6]} 45. Bxf4 {[%clk 0:00:22.7]} 45... Kxf6 {[%clk
0:00:27.5]} 46. Be3 {[%clk 0:00:22.4]} 46... Kf5 {[%clk 0:00:26.4]} 47. Bf2
{[%clk 0:00:22.4]} 47... Kg5 {[%clk 0:00:25.9]} 48. Bd4 {[%clk 0:00:22.8]} 48...
Kf4 {[%clk 0:00:25.1]} 49. Bf2 {[%clk 0:00:22.3]} 49... Kg5 {[%clk 0:00:22.6]}
50. Bd4 {[%clk 0:00:22.2]} 50... Be4 {[%clk 0:00:21.2]} 51. Kh2 {[%clk 0:00:21]}
51... Bd3 {[%clk 0:00:19]} 52. Bc3 {[%clk 0:00:20.7]} 52... Bf1 {[%clk
0:00:18.8]} 53. Bd2+ {[%clk 0:00:19.8]} 53... Kh5 {[%clk 0:00:18.9]} 54. Bf4
{[%clk 0:00:18.5]} 54... Kg6 {[%clk 0:00:18]} 55. Be3 {[%clk 0:00:17.1]} 55...
e5 {[%clk 0:00:16]} 56. Bf2 {[%clk 0:00:15.6]} 56... Kg5 {[%clk 0:00:16.3]} 57.
Be3+ {[%clk 0:00:15.8]} 57... Kh5 {[%clk 0:00:16.4]} 58. Bf2 {[%clk 0:00:16]}
58... Bc4 {[%clk 0:00:15.8]} 59. Be3 {[%clk 0:00:16.3]} 59... Be6 {[%clk
0:00:16]} 60. Bc5 {[%clk 0:00:16.1]} 60... Kg5 {[%clk 0:00:15.1]} 61. Be3+
{[%clk 0:00:15.8]} 61... Kf5 {[%clk 0:00:15.1]} 62. Bf2 {[%clk 0:00:16.1]} 62...
Kf4 {[%clk 0:00:15.2]} 63. Bxh4 {[%clk 0:00:15.8]} 63... Kf3 {[%clk 0:00:16.1]}
64. Bg5 {[%clk 0:00:14.9]} 64... e4 {[%clk 0:00:15.4]} 65. Kg1 {[%clk
0:00:14.7]} 65... Bxh3 {[%clk 0:00:15]} 66. Bh4 {[%clk 0:00:14.8]} 66... e3
{[%clk 0:00:15]} 67. Kh2 {[%clk 0:00:14.6]} 67... Bd7 {[%clk 0:00:15]} 68. Kg1
{[%clk 0:00:15]} 68... Bb5 {[%clk 0:00:14.9]} 69. Be1 {[%clk 0:00:14.6]} 69...
Ke2 {[%clk 0:00:14.8]} 70. Bc3 {[%clk 0:00:14.9]} 70... Kd3 {[%clk 0:00:13.8]}
71. Kg2 {[%clk 0:00:13.2]} 71... Ke2 {[%clk 0:00:14]} 72. Kg1 {[%clk 0:00:13]}
72... Bc6 {[%clk 0:00:14.1]} 73. Bd4 {[%clk 0:00:11.6]} 73... Be4 {[%clk
0:00:10.2]} 74. Bc3 {[%clk 0:00:11.1]} 74... Bf5 {[%clk 0:00:10]} 75. Bd4 {[%clk
0:00:11.1]} 75... Bh3 {[%clk 0:00:09.3]} 76. Bc3 {[%clk 0:00:10.9]} 76... Kd1
{[%clk 0:00:09.2]} 77. b5 {[%clk 0:00:08.9]} 77... axb5 {[%clk 0:00:08.5]} 78.
Bb4 {[%clk 0:00:09.1]} 78... Kc2 {[%clk 0:00:08]} 79. Bc3 {[%clk 0:00:09]} 79...
Kd3 {[%clk 0:00:07.5]} 80. Bb4 {[%clk 0:00:07.3]} 80... Ke2 {[%clk 0:00:07]} 81.
Bc3 {[%clk 0:00:07.1]} 81... Bf5 {[%clk 0:00:07.4]} 82. Bb4 {[%clk 0:00:07]}
82... Bd3 {[%clk 0:00:08.3]} 83. Bc3 {[%clk 0:00:07.1]} 83... Kd1 {[%clk
0:00:08.7]} 84. Bb4 {[%clk 0:00:06.7]} 84... Kc1 {[%clk 0:00:08.5]} 85. Bc3
{[%clk 0:00:06.6]} 85... Kc2 {[%clk 0:00:08.5]} 86. Bb4 {[%clk 0:00:06.4]} 86...
Kxb2 {[%clk 0:00:08.2]} 87. Bc5 {[%clk 0:00:06.3]} 87... e2 {[%clk 0:00:07.7]}
88. Kf2 {[%clk 0:00:06.4]} 88... Kc3 {[%clk 0:00:07.9]} 89. Ke1 {[%clk
0:00:06.4]} 89... b4 {[%clk 0:00:08.3]} 90. Be3 {[%clk 0:00:06]} 90... Kc2
{[%clk 0:00:08.1]} 91. Bd2 {[%clk 0:00:06]} 91... b3 {[%clk 0:00:09]} 0-1

[Event "*** Titled Tuesday Blitz"]
[Site "Chess.com"]
[Date "2020.03.03"]
[Round "8"]
[White "Andrew-FB00"]
[Black "ahachess"]
[Result "0-1"]
[WhiteElo "1857"]
[BlackElo "2181"]
[TimeControl "180+1"]
[EndTime "10:24:19 PST"]
[Termination "ahachess won by resignation"]

1. e4 {[%clk 0:03:00.9]} 1... c5 {[%clk 0:02:59.4]} 2. Nf3 {[%clk 0:03:00.2]}
2... d6 {[%clk 0:02:59.6]} 3. Bb5+ {[%clk 0:02:59.7]} 3... Bd7 {[%clk
0:02:58.9]} 4. Bxd7+ {[%clk 0:02:58.8]} 4... Nxd7 {[%clk 0:02:59.8]} 5. O-O
{[%clk 0:02:59.4]} 5... Ngf6 {[%clk 0:02:59.3]} 6. Re1 {[%clk 0:02:57.7]} 6...
g6 {[%clk 0:02:59.2]} 7. c3 {[%clk 0:02:56.8]} 7... Bg7 {[%clk 0:02:58.7]} 8. d4
{[%clk 0:02:56.7]} 8... O-O {[%clk 0:02:57.5]} 9. Bg5 {[%clk 0:02:52]} 9... cxd4
{[%clk 0:02:54]} 10. cxd4 {[%clk 0:02:51.4]} 10... Qb6 {[%clk 0:02:54]} 11. Qd2
{[%clk 0:02:40.4]} 11... e5 {[%clk 0:02:47.6]} 12. dxe5 {[%clk 0:02:18]} 12...
Nxe5 {[%clk 0:02:48.5]} 13. Nxe5 {[%clk 0:02:16.1]} 13... dxe5 {[%clk
0:02:49.4]} 14. Nc3 {[%clk 0:02:13.1]} 14... Qb4 {[%clk 0:02:10.4]} 15. Bxf6
{[%clk 0:02:10.7]} 15... Bxf6 {[%clk 0:02:10]} 16. Nd5 {[%clk 0:02:10.7]} 16...
Qxd2 {[%clk 0:02:08.9]} 0-1

[Event "*** Titled Tuesday Blitz"]
[Site "Chess.com"]
[Date "2020.03.03"]
[Round "8"]
[White "KacperPolOK"]
[Black "saraswathii"]
[Result "1-0"]
[WhiteElo "2400"]
[BlackElo "2219"]
[TimeControl "180+1"]
[EndTime "10:25:48 PST"]
[Termination "KacperPolOK won by resignation"]

1. e4 {[%clk 0:03:00.9]} 1... c5 {[%clk 0:02:59.4]} 2. Nc3 {[%clk 0:02:58.8]}
2... e6 {[%clk 0:02:58.9]} 3. Nf3 {[%clk 0:02:57.9]} 3... Nc6 {[%clk 0:02:58.1]}
4. d4 {[%clk 0:02:55.6]} 4... cxd4 {[%clk 0:02:58.1]} 5. Nxd4 {[%clk 0:02:49.3]}
5... Nf6 {[%clk 0:02:58.3]} 6. Ndb5 {[%clk 0:02:46.2]} 6... Bb4 {[%clk
0:02:55.5]} 7. Nd6+ {[%clk 0:02:45.9]} 7... Ke7 {[%clk 0:02:51.3]} 8. Nxc8+
{[%clk 0:02:39.9]} 8... Rxc8 {[%clk 0:02:49.9]} 9. Bd3 {[%clk 0:02:39.4]} 9...
d5 {[%clk 0:02:49.4]} 10. O-O {[%clk 0:02:35.8]} 10... d4 {[%clk 0:02:40.6]} 11.
Ne2 {[%clk 0:02:34.5]} 11... e5 {[%clk 0:02:40.3]} 12. f4 {[%clk 0:02:31.7]}
12... Re8 {[%clk 0:02:33.1]} 13. Ng3 {[%clk 0:02:25.2]} 13... Kf8 {[%clk
0:02:27.6]} 14. f5 {[%clk 0:02:24.3]} 14... Bc5 {[%clk 0:02:20.3]} 15. Nh5
{[%clk 0:02:18.8]} 15... Nxh5 {[%clk 0:01:54.6]} 16. Qxh5 {[%clk 0:02:19.7]}
16... Kg8 {[%clk 0:01:53]} 17. f6 {[%clk 0:02:19.2]} 17... g6 {[%clk 0:01:51]}
18. Qh4 {[%clk 0:02:17]} 18... Nb4 {[%clk 0:01:32.2]} 19. Bh6 {[%clk 0:02:16.2]}
19... Nxd3 {[%clk 0:01:23]} 20. cxd3 {[%clk 0:02:15.4]} 20... Bf8 {[%clk
0:01:23.5]} 21. Rf3 {[%clk 0:02:13]} 1-0

[Event "*** Titled Tuesday Blitz"]
[Site "Chess.com"]
[Date "2020.03.03"]
[Round "8"]
[White "isla88"]
[Black "PotapovaM"]
[Result "0-1"]
[WhiteElo "2309"]
[BlackElo "2563"]
[TimeControl "180+1"]
[EndTime "10:25:58 PST"]
[Termination "PotapovaM won by checkmate"]

1. c4 {[%clk 0:03:00.4]} 1... Nf6 {[%clk 0:02:59.1]} 2. Nc3 {[%clk 0:03:00.6]}
2... e6 {[%clk 0:02:55.5]} 3. e4 {[%clk 0:03:00.6]} 3... d5 {[%clk 0:02:55.4]}
4. e5 {[%clk 0:03:00.5]} 4... d4 {[%clk 0:02:55.4]} 5. exf6 {[%clk 0:03:00.4]}
5... dxc3 {[%clk 0:02:54.8]} 6. bxc3 {[%clk 0:03:00.8]} 6... Qxf6 {[%clk
0:02:54.1]} 7. d4 {[%clk 0:03:01.3]} 7... b6 {[%clk 0:02:44.2]} 8. Nf3 {[%clk
0:02:59.8]} 8... h6 {[%clk 0:02:43.6]} 9. Bd3 {[%clk 0:02:54.8]} 9... Bb7 {[%clk
0:02:42.6]} 10. Qe2 {[%clk 0:02:53.8]} 10... Nd7 {[%clk 0:02:31.8]} 11. Be4
{[%clk 0:02:45.1]} 11... Bxe4 {[%clk 0:02:31.4]} 12. Qxe4 {[%clk 0:02:45]} 12...
Rd8 {[%clk 0:02:31.8]} 13. O-O {[%clk 0:02:39.4]} 13... Bd6 {[%clk 0:02:31.8]}
14. Re1 {[%clk 0:02:33.1]} 14... O-O {[%clk 0:02:31.3]} 15. a4 {[%clk
0:02:25.9]} 15... a5 {[%clk 0:02:30.2]} 16. Bd2 {[%clk 0:02:05.8]} 16... Rfe8
{[%clk 0:02:28.9]} 17. Ne5 {[%clk 0:02:02.2]} 17... Bxe5 {[%clk 0:02:24.2]} 18.
dxe5 {[%clk 0:02:02]} 18... Nxe5 {[%clk 0:01:47.1]} 19. Bf4 {[%clk 0:01:55]}
19... Nd3 {[%clk 0:01:39.3]} 20. Bxc7 {[%clk 0:01:54]} 20... Qxf2+ {[%clk
0:01:19.3]} 21. Kh1 {[%clk 0:01:51.8]} 21... Nxe1 {[%clk 0:01:16.1]} 22. Bxd8
{[%clk 0:01:43.9]} 22... Qf1# {[%clk 0:01:15.4]} 0-1

[Event "*** Titled Tuesday Blitz"]
[Site "Chess.com"]
[Date "2020.03.03"]
[Round "8"]
[White "HarryCun"]
[Black "NguyenHlb"]
[Result "0-1"]
[WhiteElo "2119"]
[BlackElo "2292"]
[TimeControl "180+1"]
[EndTime "10:26:43 PST"]
[Termination "NguyenHlb won by resignation"]

1. d4 {[%clk 0:03:00.9]} 1... Nf6 {[%clk 0:02:53.3]} 2. c4 {[%clk 0:03:01.8]}
2... e6 {[%clk 0:02:53]} 3. Nf3 {[%clk 0:02:59.4]} 3... b6 {[%clk 0:02:52.3]} 4.
g3 {[%clk 0:02:58.7]} 4... Bb7 {[%clk 0:02:52.5]} 5. Bg2 {[%clk 0:02:58.7]} 5...
c5 {[%clk 0:02:49.9]} 6. O-O {[%clk 0:02:55.8]} 6... cxd4 {[%clk 0:02:48.1]} 7.
Nxd4 {[%clk 0:02:56.7]} 7... Bxg2 {[%clk 0:02:47.9]} 8. Kxg2 {[%clk 0:02:57.4]}
8... Bc5 {[%clk 0:02:45.2]} 9. Nc3 {[%clk 0:02:57.2]} 9... O-O {[%clk
0:02:44.8]} 10. Bg5 {[%clk 0:02:54]} 10... Be7 {[%clk 0:02:41.8]} 11. e4 {[%clk
0:02:45.7]} 11... h6 {[%clk 0:02:37.5]} 12. Be3 {[%clk 0:02:43.4]} 12... d6
{[%clk 0:02:21.6]} 13. h3 {[%clk 0:02:41.7]} 13... a6 {[%clk 0:02:15.1]} 14. f4
{[%clk 0:02:37.8]} 14... Qc7 {[%clk 0:02:14.1]} 15. Qd3 {[%clk 0:02:35.8]} 15...
Nbd7 {[%clk 0:02:10.7]} 16. Rac1 {[%clk 0:02:33.5]} 16... Rfc8 {[%clk
0:02:08.4]} 17. b3 {[%clk 0:02:32]} 17... Qb7 {[%clk 0:02:04.3]} 18. Nf3 {[%clk
0:02:29.6]} 18... Rab8 {[%clk 0:01:44.6]} 19. Rfd1 {[%clk 0:02:24.8]} 19... b5
{[%clk 0:01:25.7]} 20. cxb5 {[%clk 0:02:23.5]} 20... axb5 {[%clk 0:01:26.6]} 21.
b4 {[%clk 0:02:17.5]} 21... Rc4 {[%clk 0:01:21]} 22. Nd2 {[%clk 0:02:06.7]}
22... Rxb4 {[%clk 0:01:20.9]} 23. a3 {[%clk 0:02:06.1]} 23... Rb2 {[%clk
0:01:15.6]} 24. Kg1 {[%clk 0:02:01.2]} 24... Nc5 {[%clk 0:01:11.4]} 25. Bxc5
{[%clk 0:02:00.9]} 25... dxc5 {[%clk 0:01:12.3]} 26. e5 {[%clk 0:01:59.7]} 26...
Rd8 {[%clk 0:01:06.2]} 27. Qe3 {[%clk 0:01:49.7]} 27... Nd5 {[%clk 0:01:03.7]}
28. Nxd5 {[%clk 0:01:49.1]} 28... Qxd5 {[%clk 0:01:01.3]} 29. Qc3 {[%clk
0:01:35.8]} 29... Rxd2 {[%clk 0:00:58.4]} 30. Rxd2 {[%clk 0:01:33.2]} 30... Qxd2
{[%clk 0:00:58.1]} 31. Qxd2 {[%clk 0:01:33.8]} 31... Rxd2 {[%clk 0:00:58.9]} 0-1

[Event "*** Titled Tuesday Blitz"]
[Site "Chess.com"]
[Date "2020.03.03"]
[Round "8"]
[White "Msb2"]
[Black "ckgchess"]
[Result "1-0"]
[WhiteElo "2868"]
[BlackElo "2695"]
[TimeControl "180+1"]
[EndTime "10:26:45 PST"]
[Termination "Msb2 won by resignation"]

1. d4 {[%clk 0:03:00.9]} 1... Nf6 {[%clk 0:03:00.1]} 2. Nf3 {[%clk 0:02:57.6]}
2... d5 {[%clk 0:02:59.7]} 3. Bf4 {[%clk 0:02:57]} 3... c5 {[%clk 0:02:59.6]} 4.
e3 {[%clk 0:02:54.8]} 4... Nc6 {[%clk 0:03:00]} 5. Nbd2 {[%clk 0:02:54.5]} 5...
Qb6 {[%clk 0:02:47.1]} 6. dxc5 {[%clk 0:02:54.5]} 6... Qxc5 {[%clk 0:02:47.3]}
7. c3 {[%clk 0:02:42.8]} 7... Bf5 {[%clk 0:02:44.6]} 8. Qb3 {[%clk 0:02:39.8]}
8... Na5 {[%clk 0:02:37.7]} 9. Qb4 {[%clk 0:02:03.5]} 9... Qxb4 {[%clk
0:02:04.1]} 10. cxb4 {[%clk 0:02:04.4]} 10... e5 {[%clk 0:01:56]} 11. Bxe5
{[%clk 0:01:41.8]} 11... Bxb4 {[%clk 0:01:55.9]} 12. Bxf6 {[%clk 0:01:38.2]}
12... gxf6 {[%clk 0:01:56.8]} 13. Nd4 {[%clk 0:01:38.8]} 13... Be6 {[%clk
0:01:54.2]} 14. a3 {[%clk 0:01:38.2]} 14... Bxd2+ {[%clk 0:01:53.1]} 15. Kxd2
{[%clk 0:01:39.1]} 15... Rc8 {[%clk 0:01:50.8]} 16. Bb5+ {[%clk 0:01:34]} 16...
Ke7 {[%clk 0:01:50.5]} 17. Rac1 {[%clk 0:01:34.7]} 17... Rxc1 {[%clk 0:01:47]}
18. Rxc1 {[%clk 0:01:35.6]} 18... Rc8 {[%clk 0:01:47.7]} 19. Rxc8 {[%clk
0:01:28.6]} 19... Bxc8 {[%clk 0:01:48.6]} 20. b4 {[%clk 0:01:29.2]} 20... Nc6
{[%clk 0:01:28.3]} 21. Bxc6 {[%clk 0:01:22.2]} 21... bxc6 {[%clk 0:01:29.2]} 22.
Nxc6+ {[%clk 0:01:22.6]} 22... Kd6 {[%clk 0:01:29.2]} 23. Nxa7 {[%clk
0:01:15.3]} 23... Bd7 {[%clk 0:01:29]} 24. b5 {[%clk 0:00:55.9]} 24... Kc5
{[%clk 0:01:27.6]} 25. a4 {[%clk 0:00:56.1]} 25... Kb4 {[%clk 0:01:26]} 26. b6
{[%clk 0:00:55.9]} 1-0

[Event "*** Titled Tuesday Blitz"]
[Site "Chess.com"]
[Date "2020.03.03"]
[Round "8"]
[White "NM2019"]
[Black "Sjakkerntobi"]
[Result "1-0"]
[WhiteElo "2026"]
[BlackElo "2249"]
[TimeControl "180+1"]
[EndTime "10:26:51 PST"]
[Termination "NM2019 won by resignation"]

1. c4 {[%clk 0:03:00.7]} 1... c5 {[%clk 0:02:57.4]} 2. Nc3 {[%clk 0:03:00.9]}
2... g6 {[%clk 0:02:58.1]} 3. Nf3 {[%clk 0:03:01.2]} 3... Bg7 {[%clk 0:02:59]}
4. d4 {[%clk 0:03:01.7]} 4... Nc6 {[%clk 0:02:59.9]} 5. d5 {[%clk 0:03:01.8]}
5... Nd4 {[%clk 0:03:00.3]} 6. e3 {[%clk 0:03:00.6]} 6... Nxf3+ {[%clk
0:02:58.3]} 7. Qxf3 {[%clk 0:02:55.9]} 7... Nf6 {[%clk 0:02:58.6]} 8. e4 {[%clk
0:02:55.3]} 8... d6 {[%clk 0:02:58.9]} 9. Bd3 {[%clk 0:02:54.1]} 9... Bg4 {[%clk
0:02:59.2]} 10. Qg3 {[%clk 0:02:53.8]} 10... h5 {[%clk 0:02:59.7]} 11. f3 {[%clk
0:02:49]} 11... h4 {[%clk 0:02:59.2]} 12. Qf2 {[%clk 0:02:47.4]} 12... Bd7
{[%clk 0:02:59.7]} 13. Be3 {[%clk 0:02:46.8]} 13... h3 {[%clk 0:02:59.1]} 14. g3
{[%clk 0:02:46.7]} 14... a6 {[%clk 0:02:57.6]} 15. O-O {[%clk 0:02:46.3]} 15...
Nh5 {[%clk 0:02:56.2]} 16. Be2 {[%clk 0:02:34.9]} 16... Be5 {[%clk 0:02:54.4]}
17. f4 {[%clk 0:02:32.8]} 17... Bg7 {[%clk 0:02:54.3]} 18. e5 {[%clk 0:01:55]}
18... dxe5 {[%clk 0:02:50.9]} 19. fxe5 {[%clk 0:01:52.1]} 19... f5 {[%clk
0:02:50.8]} 20. e6 {[%clk 0:01:36.5]} 20... Bc8 {[%clk 0:02:45.8]} 21. Bxc5
{[%clk 0:01:34.4]} 21... Qc7 {[%clk 0:02:41.1]} 22. Rad1 {[%clk 0:01:10.1]}
22... Be5 {[%clk 0:02:39.9]} 23. Bb6 {[%clk 0:01:01.5]} 23... Qb8 {[%clk
0:02:36.9]} 24. c5 {[%clk 0:00:58.9]} 24... O-O {[%clk 0:02:34.7]} 25. Bxh5
{[%clk 0:00:55.4]} 25... gxh5 {[%clk 0:02:35.1]} 26. Qf3 {[%clk 0:00:45.9]}
26... h4 {[%clk 0:02:35.2]} 27. Ne4 {[%clk 0:00:23.5]} 27... hxg3 {[%clk
0:02:27.1]} 28. Nxg3 {[%clk 0:00:22.7]} 28... Bxg3 {[%clk 0:02:26.6]} 29. Qxg3+
{[%clk 0:00:18.5]} 29... Kh7 {[%clk 0:02:25.3]} 30. Qxh3+ {[%clk 0:00:16]} 30...
Kg7 {[%clk 0:02:25.6]} 31. Rxf5 {[%clk 0:00:11.3]} 1-0

[Event "*** Titled Tuesday Blitz"]
[Site "Chess.com"]
[Date "2020.03.03"]
[Round "8"]
[White "mitraasz"]
[Black "GMKrikor"]
[Result "0-1"]
[WhiteElo "2150"]
[BlackElo "2803"]
[TimeControl "180+1"]
[EndTime "10:27:16 PST"]
[Termination "GMKrikor won by resignation"]

1. d4 {[%clk 0:03:00.7]} 1... Nf6 {[%clk 0:02:59.8]} 2. Nf3 {[%clk 0:02:57.9]}
2... d5 {[%clk 0:02:59.2]} 3. e3 {[%clk 0:02:55]} 3... g6 {[%clk 0:02:54.2]} 4.
c4 {[%clk 0:02:53.9]} 4... Bg7 {[%clk 0:02:53.7]} 5. Nc3 {[%clk 0:02:54.2]} 5...
O-O {[%clk 0:02:53.2]} 6. b4 {[%clk 0:02:53.6]} 6... a5 {[%clk 0:02:51.6]} 7. b5
{[%clk 0:02:52.7]} 7... c5 {[%clk 0:02:51.8]} 8. Be2 {[%clk 0:02:29.6]} 8...
cxd4 {[%clk 0:02:47.7]} 9. exd4 {[%clk 0:02:22.5]} 9... dxc4 {[%clk 0:02:44.8]}
10. O-O {[%clk 0:02:17.6]} 10... Nbd7 {[%clk 0:02:36.3]} 11. Bxc4 {[%clk
0:02:00.3]} 11... Nb6 {[%clk 0:02:36.6]} 12. Bd3 {[%clk 0:01:56.4]} 12... Be6
{[%clk 0:02:35]} 13. Bf4 {[%clk 0:01:47.8]} 13... Rc8 {[%clk 0:02:33.6]} 14. Na4
{[%clk 0:01:42.8]} 14... Nbd5 {[%clk 0:02:28.7]} 15. Be5 {[%clk 0:01:38.5]}
15... Nb4 {[%clk 0:02:20]} 16. Be2 {[%clk 0:01:19.6]} 16... b6 {[%clk
0:02:11.3]} 17. a3 {[%clk 0:01:09.7]} 17... Nbd5 {[%clk 0:02:11.7]} 18. Qd3
{[%clk 0:01:01.2]} 18... Bh6 {[%clk 0:02:02.7]} 19. Bxf6 {[%clk 0:00:25]} 19...
exf6 {[%clk 0:02:00.8]} 20. Nb2 {[%clk 0:00:11.2]} 20... Bf5 {[%clk 0:01:47.5]}
21. Qd1 {[%clk 0:00:10.8]} 21... Nc3 {[%clk 0:01:46.4]} 22. Qe1 {[%clk
0:00:10.3]} 22... Re8 {[%clk 0:01:46.5]} 23. Kh1 {[%clk 0:00:04.7]} 23... Rxe2
{[%clk 0:01:45.8]} 0-1

[Event "*** Titled Tuesday Blitz"]
[Site "Chess.com"]
[Date "2020.03.03"]
[Round "8"]
[White "GianmarcoVaR"]
[Black "ajian"]
[Result "1-0"]
[WhiteElo "2554"]
[BlackElo "2296"]
[TimeControl "180+1"]
[EndTime "10:27:17 PST"]
[Termination "GianmarcoVaR won by resignation"]

1. d4 {[%clk 0:02:50.9]} 1... Nf6 {[%clk 0:02:58.7]} 2. c4 {[%clk 0:02:50.8]}
2... e6 {[%clk 0:02:58.8]} 3. g3 {[%clk 0:02:51.1]} 3... d5 {[%clk 0:02:58.8]}
4. Nf3 {[%clk 0:02:50.6]} 4... dxc4 {[%clk 0:02:58.6]} 5. Bg2 {[%clk 0:02:51.5]}
5... a6 {[%clk 0:02:55.6]} 6. O-O {[%clk 0:02:44.8]} 6... Nbd7 {[%clk 0:02:49]}
7. a4 {[%clk 0:02:41.6]} 7... c5 {[%clk 0:02:37.8]} 8. Na3 {[%clk 0:02:22.9]}
8... b5 {[%clk 0:02:31.1]} 9. Ne5 {[%clk 0:02:19.9]} 9... Nd5 {[%clk 0:02:23.5]}
10. Rb1 {[%clk 0:02:19.6]} 10... Nxe5 {[%clk 0:02:15.5]} 11. dxe5 {[%clk
0:02:18.7]} 11... Rb8 {[%clk 0:02:16]} 12. e4 {[%clk 0:02:13.4]} 12... Nb4
{[%clk 0:02:12.4]} 13. Qg4 {[%clk 0:02:03.1]} 13... g6 {[%clk 0:02:05.3]} 14.
Bg5 {[%clk 0:02:02.4]} 14... Be7 {[%clk 0:02:04.6]} 15. Bh6 {[%clk 0:02:00.4]}
15... Nd3 {[%clk 0:01:53.2]} 16. Rbd1 {[%clk 0:01:50.6]} 16... Bd7 {[%clk
0:01:35.3]} 17. axb5 {[%clk 0:01:49.8]} 17... axb5 {[%clk 0:01:35.1]} 18. Nc2
{[%clk 0:01:41.4]} 18... Nxe5 {[%clk 0:01:19.4]} 19. Qf4 {[%clk 0:01:39.4]}
19... Bf6 {[%clk 0:01:18.7]} 20. h4 {[%clk 0:01:37.8]} 20... Qe7 {[%clk
0:01:06]} 21. Bg5 {[%clk 0:01:32]} 21... Bxg5 {[%clk 0:00:26.7]} 22. Qxe5 {[%clk
0:01:31.7]} 22... O-O {[%clk 0:00:23.7]} 23. hxg5 {[%clk 0:01:31.8]} 23... Rfc8
{[%clk 0:00:18.5]} 24. Ne3 {[%clk 0:01:31.9]} 24... Qe8 {[%clk 0:00:13.8]} 25.
Ng4 {[%clk 0:01:31.8]} 25... h5 {[%clk 0:00:07.1]} 26. Nf6+ {[%clk 0:01:30.9]}
1-0